bitfinex/quotes_ETHUSD_20241116
["timestamp","ask_amount","ask_price","bid_price","bid_amount"]
[1731723004358,3.22352,3102.2,3101.5,4.11826803]
[1731723005164,3.22352,3102.2,3101.5,4.05379]
[1731723005165,3.22364,3102.1,3101.5,4.05379]
[1731723005661,3.98103,3102.4,3101.5,4.05379]
[1731723005662,3.22346,3102.3,3101.6,3.22412]
[1731723006017,3.22346,3102.3,3101.7,0.63487971]
[1731723006218,3.22353,3102.2,3101.7,0.63487971]
[1731723007472,3.22333,3102.4,3101.8,0.89407351]
[1731723007614,3.22333,3102.4,3101.8,0.8296]
[1731723008056,0.7577,3102.8,3101.8,0.8296]
[1731723008233,3.22345,3102.3,3101.8,0.8296]
[1731723008619,3.22358,3102.2,3101.8,0.8296]
[1731723008820,3.22345,3102.3,3101.8,0.8296]
[1731723009031,0.05896615,3102.1,3101.8,0.8296]
[1731723009257,3.22353,3102.2,3101.8,1.46222425]
[1731723009455,0.05890614,3102.0,3101.8,1.46222425]
[1731723009663,3.22321,3102.5,3101.8,1.46222425]
[1731723009958,0.05884613,3101.9,3101.8,1.46222425]
[1731723010271,0.05884613,3101.9,3101.8,1.93085768]
[1731723010561,3.22336,3102.4,3101.8,1.93085768]
[1731723010860,3.22336,3102.4,3101.8,4.68614425]
[1731723011061,0.05908845,3102.3,3101.8,4.68614425]
[1731723012796,0.05908845,3102.3,3102.0,3.22365]
[1731723013087,3.22302,3102.7,3102.0,3.22365]
[1731723013543,0.05927887,3102.6,3101.8,1.46222425]
[1731723013886,3.22352,3102.2,3101.8,0.8296]
[1731723014246,0.05899359,3102.1,3101.8,0.8296]
[1731723015047,3.22382,3102.0,3101.8,0.8296]
[1731723015251,3.22382,3102.0,3101.3,0.8109]
[1731723015252,3.22406,3101.7,3101.3,0.8109]
[1731723015481,3.22424,3101.6,3101.1,0.8109]
[1731723015683,3.22425,3101.5,3101.1,1.2872576]
[1731723015843,3.28287825,3101.5,3101.2,0.65881169]
[1731723016481,0.05862825,3101.5,3101.2,0.65881169]
[1731723016780,3.22366,3102.1,3101.3,3.22445]
[1731723016991,0.05856266,3101.4,3101.2,0.65881169]
[1731723017147,3.22403,3101.7,3101.2,0.65881169]
[1731723017551,0.05867291,3101.6,3101.2,0.65881169]
[1731723018090,0.05867291,3101.6,3101.2,1.12824686]
[1731723018443,3.22403,3101.7,3101.2,1.12824686]
[1731723019844,3.22414,3101.6,3101.2,1.12824686]
[1731723020055,3.22438,3101.4,3101.1,0.8109]
[1731723020287,3.22455,3101.2,3100.6,3.8109]
[1731723020487,3.22455,3101.2,3100.7,0.703616]
[1731723020663,0.05835736,3101.1,3100.7,0.703616]
[1731723020858,0.87165736,3101.1,3100.7,0.703616]
[1731723021060,3.22497,3100.8,3100.2,0.8109]
[1731723021301,3.2251,3100.7,3100.2,0.8109]
[1731723021454,3.28320831,3100.7,3100.3,0.403656]
[1731723021749,0.05810831,3100.7,3100.3,0.403656]
[1731723021949,0.05810831,3100.7,3100.3,0.46815744]
[1731723022188,3.22487,3100.9,3100.3,0.403656]
[1731723022393,3.22487,3100.9,3100.4,0.51587798]
[1731723022694,0.05816837,3100.8,3100.4,0.51587798]
[1731723023049,3.22498,3100.8,3100.4,0.51587798]
[1731723023253,0.05810831,3100.7,3100.4,0.51587798]
[1731723025489,3.22483,3101.0,3100.4,0.51587798]
[1731723025691,0.05804824,3100.6,3100.4,0.51587798]
[1731723025903,3.22488,3100.9,3100.4,0.51587798]
[1731723026496,0.05816837,3100.8,3100.4,0.51587798]
[1731723026990,3.22477,3101.0,3100.5,0.3741348]
[1731723027568,0.05822843,3100.9,3100.5,0.3741348]
[1731723027980,4.03799,3101.1,3100.5,3.5994048]
[1731723027981,3.22469,3101.1,3100.5,3.5994048]
[1731723028190,0.05826851,3101.0,3100.5,3.5994048]
[1731723028405,0.05826851,3101.0,3100.6,0.41152828]
[1731723028735,0.05819701,3100.9,3100.6,0.41152828]
[1731723029070,3.22466,3101.1,3100.6,0.41152828]
[1731723029270,0.05813826,3100.8,3100.6,0.41152828]
[1731723029498,0.8225,3101.3,3100.5,0.3741348]
[1731723029716,0.0580782,3100.7,3100.5,0.3741348]
[1731723029875,3.22474,3101.1,3100.5,0.3741348]
[1731723030210,3.22477,3101.0,3100.4,0.51587798]
[1731723030514,0.05819832,3100.9,3100.4,0.51587798]
[1731723031452,3.28309832,3100.9,3100.4,0.51587798]
[1731723031806,4.04758,3100.7,3100.2,4.46504235]
[1731723032019,0.05801814,3100.6,3100.3,3.2254]
[1731723032231,3.22469,3101.1,3100.4,3.22538]
[1731723032451,0.09115085,3100.5,3100.4,4.00087268]
[1731723032706,3.0,3101.6,3100.4,0.77549268]
[1731723033057,3.0,3101.6,3100.2,4.46504235]
[1731723033058,3.22502,3100.8,3100.2,4.46504235]
[1731723033229,3.22508,3100.7,3100.2,4.46504235]
[1731723033426,3.31634884,3100.7,3100.3,0.76907324]
[1731723034326,0.09126884,3100.7,3100.3,0.76907324]
[1731723034516,0.09126884,3100.7,3100.5,3.22527]
[1731723034846,4.04698,3101.3,3100.7,3.22507]
[1731723035066,4.04698,3101.3,3100.8,0.404367]
[1731723036371,0.8225,3101.8,3101.0,3.22476]
[1731723036573,3.22414,3101.6,3101.0,3.22476]
[1731723036930,3.22426,3101.5,3100.9,1.46148637]
[1731723037127,3.22445,3101.3,3101.0,0.46864364]
[1731723037325,3.22463,3101.2,3100.9,0.8186]
[1731723037570,0.8225,3101.2,3100.4,0.8186]
[1731723037872,3.22486,3101.0,3100.4,0.8186]
[1731723038073,3.2251,3100.7,3100.4,0.704419]
[1731723038245,3.2251,3100.7,3100.2,0.8186]
[1731723038978,3.2251,3100.7,3100.3,0.24037945]
[1731723039268,0.09122587,3100.6,3100.4,0.24037945]
[1731723039468,0.09122587,3100.6,3100.4,0.40589795]
[1731723042469,0.09122587,3100.6,3100.0,0.8186]
[1731723042686,0.09122587,3100.6,3100.1,0.24058811]
[1731723042884,3.2252,3100.6,3100.2,0.24058811]
[1731723043049,0.09112974,3100.5,3100.3,0.24058811]
[1731723043251,3.31642974,3100.5,3100.0,1.45205265]
[1731723043473,3.2253,3100.5,3100.1,0.52072699]
[1731723043687,0.09026407,3100.4,3100.2,0.24072699]
[1731723043895,3.22549,3100.3,3099.7,0.8186]
[1731723044052,3.22582,3100.0,3099.8,0.24074758]
[1731723044251,3.22582,3100.0,3099.9,0.24074758]
[1731723044487,0.08994578,3099.9,3099.5,3.46713219]
[1731723044791,0.8225,3100.2,3099.6,0.66938634]
[1731723044994,0.08988676,3099.8,3099.7,0.24081312]
[1731723045190,3.2259,3100.0,3099.7,0.24081312]
[1731723045362,0.08988676,3099.8,3099.7,0.24081312]
[1731723045561,3.22591,3099.9,3099.7,0.24094878]
[1731723045895,0.08987563,3099.8,3099.4,3.8186]
[1731723046099,0.08987563,3099.8,3099.5,0.99902015]
[1731723046247,0.08987563,3099.8,3099.6,0.24087705]
[1731723046448,0.08987563,3099.8,3099.7,0.24087705]
[1731723046884,0.08987563,3099.8,3099.7,0.52087705]
[1731723047151,3.22578,3100.1,3099.7,0.52087705]
[1731723047355,0.0898619,3099.8,3099.7,0.28]
[1731723047587,3.22578,3100.1,3099.7,0.28]
[1731723048190,0.08997994,3100.0,3099.7,0.28]
[1731723049196,0.08997994,3100.0,3099.7,0.70644631]
[1731723049693,3.31578994,3100.0,3099.7,0.70644631]
[1731723049997,3.31578994,3100.0,3099.7,0.28]
[1731723050205,3.22591,3099.9,3099.7,0.28]
[1731723050513,0.0898619,3099.8,3099.7,0.28]
[1731723051373,3.3158719,3099.8,3099.7,0.28]
[1731723053078,0.7764,3101.6,3100.4,0.7986]
[1731723053413,0.7764,3101.6,3100.5,3.22528]
[1731723053414,3.22468,3101.1,3100.5,3.22528]
[1731723053709,3.22468,3101.1,3100.4,0.8631041]
[1731723054103,0.07409517,3101.0,3100.5,3.0]
[1731723054399,0.07409517,3101.0,3100.5,3.70884441]
[1731723056324,0.07409517,3101.0,3100.6,3.22516]
[1731723056669,3.22445,3101.3,3100.6,3.22516]
[1731723056875,0.07406349,3100.9,3100.6,3.22516]
[1731723057211,0.07400684,3100.8,3100.7,0.69340044]
[1731723057397,3.22455,3101.2,3100.7,0.69340044]
[1731723057635,0.07418379,3101.1,3100.7,0.69340044]
[1731723057932,3.22445,3101.3,3100.8,0.39185604]
[1731723058088,0.07412481,3101.0,3100.8,0.39185604]
[1731723058283,3.22445,3101.3,3100.8,0.39185604]
[1731723058805,0.07424276,3101.2,3100.8,0.39185604]
[1731723059032,3.22445,3101.3,3100.8,0.39185604]
[1731723059325,3.22445,3101.3,3100.4,4.02398]
[1731723059326,0.07424579,3101.2,3100.4,0.7986]
[1731723059525,3.22476,3101.1,3100.4,4.02398]
[1731723059827,0.07418682,3101.1,3100.4,4.02398]
[1731723060035,3.22425,3101.5,3100.7,3.22498]
[1731723060324,3.22449,3101.3,3100.7,3.22498]
[1731723060688,0.07424579,3101.2,3100.7,3.22498]
[1731723060889,0.07424579,3101.2,3100.9,3.22484]
[1731723061090,0.01,3102.8,3101.2,0.7653]
[1731723061292,3.22329,3102.5,3101.8,0.7653]
[1731723061531,3.22333,3102.4,3101.8,0.7653]
[1731723062456,3.22359,3102.2,3101.8,0.7653]
[1731723062731,0.402519,3102.2,3101.4,0.7653]
[1731723062944,3.22389,3101.9,3101.4,0.7653]
[1731723066612,3.22373,3102.0,3101.4,0.7653]
[1731723067809,0.785,3101.9,3101.0,3.98824]
[1731723068146,3.22435,3101.4,3101.0,0.7635]
[1731723068429,3.22411,3101.7,3101.0,0.7635]
[1731723068884,3.29624366,3101.6,3101.0,3.98826]
[1731723069242,3.29624366,3101.6,3101.0,0.7635]
[1731723069528,3.22435,3101.4,3100.8,3.22492]
[1731723069733,3.29624366,3101.6,3100.8,3.9884]
[1731723070032,3.22415,3101.6,3100.8,3.9884]
[1731723070536,0.0720347,3101.5,3100.8,3.9884]
[1731723071035,3.2962847,3101.5,3100.8,3.9884]
[1731723071332,3.22437,3101.4,3100.8,3.9884]
[1731723071506,3.2962847,3101.5,3100.8,3.9884]
[1731723071709,0.07189523,3101.3,3100.8,3.9884]
[1731723071904,3.22454,3101.3,3100.8,0.7635]
[1731723072104,3.22467,3101.1,3100.5,3.98878]
[1731723072420,3.29648527,3101.0,3100.5,0.7635]
[1731723072636,3.22494,3100.9,3100.5,0.7635]
[1731723072835,0.0715936,3100.8,3100.5,0.7635]
[1731723073856,3.22507,3100.7,3100.1,4.0351]
[1731723074005,0.07146821,3100.6,3100.1,4.43861]
[1731723074402,0.07146821,3100.6,3100.1,5.06815416]
[1731723075362,0.07146821,3100.6,3100.1,1.43894416]
[1731723075676,3.2255,3100.3,3099.8,0.8094]
[1731723076160,3.22539,3100.4,3099.8,0.8094]
[1731723076161,0.07120122,3100.2,3099.8,4.03539]
[1731723076539,0.7898,3100.5,3100.0,3.22579]
[1731723077021,0.07131116,3100.4,3100.0,3.22579]
[1731723077664,0.07131116,3100.4,3099.8,0.8094]
[1731723077832,0.07131116,3100.4,3099.9,3.22582]
[1731723078170,3.29674116,3100.4,3099.8,0.8094]
[1731723078462,3.29674116,3100.4,3099.8,4.03541]
[1731723078660,0.07131116,3100.4,3099.9,0.06451542]
[1731723078824,3.22495,3100.9,3100.2,3.22552]
[1731723079025,3.29651613,3100.8,3100.2,3.22552]
[1731723080437,0.07154613,3100.8,3100.5,0.8094]
[1731723080662,3.22466,3101.1,3100.5,4.03465]
[1731723080859,0.06924543,3101.0,3100.5,4.03465]
[1731723083787,0.06924543,3101.0,3100.6,3.22516]
[1731723083935,0.06924543,3101.0,3100.5,5.04711317]
[1731723084130,0.06924543,3101.0,3100.7,3.22504]
[1731723084334,3.22447,3101.3,3100.5,4.76711317]
[1731723084643,3.22474,3101.1,3100.5,4.76711317]
[1731723084847,3.22492,3100.9,3100.5,1.54186317]
[1731723085040,0.06807444,3100.8,3100.5,0.8094]
[1731723085732,3.22474,3101.1,3100.5,0.8094]
[1731723086070,3.22474,3101.1,3100.5,4.03467]
[1731723086224,0.06819241,3101.0,3100.5,4.03467]
[1731723088061,3.22457,3101.2,3100.5,4.03467]
[1731723088280,3.29294139,3101.1,3100.5,4.03467]
[1731723089300,3.22476,3101.0,3100.5,0.8094]
[1731723089454,0.06825139,3101.1,3100.5,1.27711097]
[1731723089656,0.06825139,3101.1,3100.6,3.22508]
[1731723091251,0.06825139,3101.1,3100.5,1.27711097]
[1731723091489,3.22447,3101.3,3100.7,3.22507]
[1731723091655,0.06820327,3101.0,3100.7,3.22507]
[1731723091854,3.22447,3101.3,3100.7,3.22507]
[1731723092081,0.06832056,3101.2,3100.7,3.22507]
[1731723093694,0.06832056,3101.2,3100.7,3.957045]
[1731723094103,0.06832056,3101.2,3100.8,0.8032]
[1731723094399,0.06832056,3101.2,3100.9,3.22483]
[1731723094556,3.22424,3101.5,3100.9,3.22483]
[1731723094754,0.06828232,3101.1,3100.9,3.22483]
[1731723094976,3.22424,3101.5,3101.0,0.402803]
[1731723095216,0.06822334,3101.0,3100.8,0.8032]
[1731723095376,3.22424,3101.5,3100.9,0.16]
[1731723095817,0.06846365,3101.4,3100.9,0.16]
[1731723096182,3.22446,3101.3,3100.9,0.16]
[1731723096605,0.06834537,3101.2,3100.9,0.16]
[1731723097019,3.546906,3101.3,3100.9,0.16]
[1731723097180,0.0682864,3101.1,3100.9,0.16]
[1731723097379,3.22446,3101.3,3100.9,0.16]
[1731723097585,0.06822742,3101.0,3100.7,3.22502]
[1731723097823,3.22446,3101.3,3100.7,3.22502]
[1731723098024,0.06816843,3100.9,3100.7,3.22502]
[1731723098232,3.22414,3101.6,3100.8,3.22494]
[1731723098527,3.22414,3101.6,3100.9,4.02806]
[1731723098696,3.22424,3101.5,3100.9,4.02806]
[1731723099110,0.06845923,3101.4,3100.9,4.02806]
[1731723100779,3.29281923,3101.4,3100.9,0.9632]
[1731723101082,0.06845923,3101.4,3100.9,0.9632]
[1731723102485,3.22447,3101.3,3100.9,0.9632]
[1731723102806,3.29287028,3101.3,3100.9,0.8032]
[1731723103325,0.06840028,3101.3,3100.9,0.8032]
[1731723103531,3.22435,3101.4,3100.9,0.8032]
[1731723103689,0.0683413,3101.2,3100.9,0.8032]
[1731723103892,4.00967,3101.7,3100.9,4.430866]
[1731723104091,0.06828233,3101.1,3101.0,3.22476]
[1731723104313,4.00967,3101.7,3101.0,3.22476]
[1731723104513,0.06828199,3101.1,3101.0,3.22476]
[1731723104734,3.22407,3101.7,3101.0,3.22476]
[1731723104936,3.22407,3101.7,3101.1,3.22458]
[1731723105295,3.22383,3101.9,3101.2,0.8032]
[1731723105603,3.22383,3101.9,3101.3,3.22439]
[1731723105790,3.22383,3101.9,3101.4,0.402759]
[1731723107190,3.22364,3102.1,3101.5,0.8035]
[1731723107389,3.22364,3102.1,3101.6,0.24101808]
[1731723107627,3.22364,3102.1,3101.7,0.24101808]
[1731723107838,3.22364,3102.1,3101.5,4.02774]
[1731723108017,3.22364,3102.1,3101.5,4.7932289]
[1731723108887,4.05043,3102.5,3101.6,3.11074]
[1731723109209,3.22338,3102.4,3101.9,0.8035]
[1731723109411,3.22344,3102.3,3101.9,0.8035]
[1731723109714,3.22344,3102.3,3101.9,0.689]
[1731723110088,3.628273,3102.5,3101.9,0.689]
[1731723110287,6.851543,3102.5,3101.9,0.689]
[1731723110486,3.628273,3102.5,3101.9,0.689]
[1731723110712,3.22331,3102.4,3101.9,0.689]
[1731723113430,0.405043,3102.5,3101.9,3.91281]
[1731723113633,3.628283,3102.5,3101.9,0.689]
[1731723113981,0.405043,3102.5,3101.9,0.689]
[1731723114239,0.06907827,3102.4,3102.0,3.22371]
[1731723114706,3.22311,3102.6,3102.0,3.22371]
[1731723114906,0.06901934,3102.3,3102.0,3.22371]
[1731723115234,3.22311,3102.6,3102.0,3.22371]
[1731723115406,0.0689604,3102.2,3102.0,3.22371]
[1731723115611,3.22311,3102.6,3102.0,3.22371]
[1731723115839,0.06890147,3102.1,3101.9,0.689]
[1731723116045,0.06890147,3102.1,3101.9,3.91282]
[1731723116336,0.06884253,3102.0,3101.9,4.31054926]
[1731723116496,4.05022,3102.7,3101.9,0.689]
[1731723116695,0.06884933,3102.0,3101.9,0.689]
[1731723116931,3.22319,3102.6,3101.9,3.91283]
[1731723117131,0.06871899,3102.0,3101.9,3.91283]
[1731723117339,3.22382,3102.0,3101.4,0.0644727]
[1731723117641,3.22382,3102.0,3101.3,6.22438]
[1731723117642,3.22414,3101.6,3101.3,0.7649]
[1731723118013,0.06842422,3101.5,3101.3,0.7649]
[1731723118519,0.06836526,3101.4,3101.3,0.7649]
[1731723118728,0.06836526,3101.4,3101.1,0.7649]
[1731723119059,3.22412,3101.7,3101.1,0.7649]
[1731723119554,0.06848318,3101.6,3101.1,0.7649]
[1731723119752,0.06848318,3101.6,3101.3,0.7649]
[1731723120051,3.22394,3101.8,3101.3,0.7649]
[1731723120260,3.22376,3102.0,3101.3,3.98931]
[1731723120461,0.06853401,3101.7,3101.4,3.22434]
[1731723120759,6.769705,3102.1,3101.4,3.22434]
[1731723120760,0.06864171,3101.9,3101.4,3.22434]
[1731723120919,0.06846485,3101.6,3101.4,3.22434]
[1731723121119,3.22374,3102.0,3101.4,3.22434]
[1731723121356,0.06840589,3101.5,3101.4,3.22434]
[1731723121521,3.22374,3102.0,3101.4,3.22434]
[1731723121719,0.06841166,3101.5,3101.4,3.22434]
[1731723121933,3.22373,3102.0,3101.4,3.69290577]
[1731723122132,0.06841166,3101.5,3101.4,3.69290577]
[1731723122327,3.22365,3102.1,3101.4,3.69290577]
[1731723122656,0.06841166,3101.5,3101.4,3.22434]
[1731723123162,3.22374,3102.0,3101.4,3.22434]
[1731723123451,0.06841166,3101.5,3101.4,3.22434]
[1731723123620,3.22374,3102.0,3101.4,3.22434]
[1731723123825,0.06841166,3101.5,3101.4,3.22434]
[1731723124316,0.06841166,3101.5,3101.3,0.82938325]
[1731723124517,3.22383,3101.9,3101.3,0.7649]
[1731723124740,0.06835269,3101.4,3101.3,0.7649]
[1731723124938,3.22383,3101.9,3101.3,3.98935]
[1731723125147,0.06835269,3101.4,3101.3,3.98935]
[1731723125361,3.22383,3101.9,3101.3,3.98935]
[1731723125540,0.06835269,3101.4,3101.3,3.98935]
[1731723125750,3.22383,3101.9,3101.3,3.98935]
[1731723125948,0.06838023,3101.4,3101.3,0.7649]
[1731723126267,3.22383,3101.9,3101.3,0.7649]
[1731723126449,0.06838023,3101.4,3101.3,0.7649]
[1731723127059,3.22403,3101.7,3101.3,0.7649]
[1731723127229,0.06837853,3101.4,3101.3,0.7649]
[1731723127424,3.22403,3101.7,3101.3,0.7649]
[1731723127640,0.06837853,3101.4,3101.3,0.7649]
[1731723128140,3.22415,3101.6,3101.1,0.7834]
[1731723128459,3.22386,3101.9,3101.1,4.00806]
[1731723128460,0.06837716,3101.4,3101.1,4.00806]
[1731723128628,0.06837716,3101.4,3101.2,3.22451]
[1731723128994,3.22386,3101.9,3101.2,3.22451]
[1731723129168,0.06831582,3101.3,3101.2,3.22451]
[1731723129328,3.22386,3101.9,3101.2,3.22451]
[1731723129523,0.06831582,3101.3,3101.2,3.22451]
[1731723129723,3.22386,3101.9,3101.2,3.22451]
[1731723129924,0.06831582,3101.3,3101.2,3.22451]
[1731723130178,3.22386,3101.9,3101.2,3.22451]
[1731723130335,0.06831582,3101.3,3101.2,3.22455]
[1731723130542,3.22386,3101.9,3101.2,3.22455]
[1731723130726,0.06831582,3101.3,3101.2,6.22455]
[1731723130930,3.22386,3101.9,3101.2,7.31265515]
[1731723131131,3.22386,3101.9,3101.3,3.22444]
[1731723133231,3.22373,3102.0,3101.5,0.7834]
[1731723133570,3.22365,3102.1,3101.5,0.7834]
[1731723134256,3.22373,3102.0,3101.5,0.7834]
[1731723134763,0.7541,3102.2,3101.5,0.7834]
[1731723134966,3.97763,3102.2,3101.6,3.22414]
[1731723135348,3.97763,3102.2,3101.5,0.7834]
[1731723135349,3.22362,3102.1,3101.5,0.7834]
[1731723136375,3.97738,3102.5,3101.8,3.22392]
[1731723136674,3.97738,3102.5,3101.9,0.7834]
[1731723139175,3.22328,3102.5,3102.0,3.22372]
[1731723139474,3.22332,3102.4,3101.9,0.7834]
[1731723139872,3.22328,3102.5,3101.9,0.7834]
[1731723140671,3.97758,3102.3,3101.5,3.7834]
[1731723140875,3.22369,3102.1,3101.5,7.00757]
[1731723142781,3.22369,3102.1,3101.5,4.00757]
[1731723142963,3.22369,3102.1,3101.6,0.28]
[1731723143277,3.22374,3102.0,3101.6,0.28]
[1731723143583,0.06869199,3101.9,3101.6,0.28]
[1731723146998,0.06869199,3101.9,3101.5,0.7834]
[1731723148698,3.22394,3101.8,3101.3,1.39533617]
[1731723148872,3.8755772,3101.8,3101.3,1.39533617]
[1731723149195,0.06857409,3101.7,3101.6,3.22414]
[1731723149385,3.97752,3102.3,3101.6,3.22414]
[1731723149386,3.22342,3102.3,3101.7,3.22403]
[1731723149581,0.78894944,3102.2,3101.7,3.22403]
[1731723151092,3.22378,3102.0,3101.6,0.7538]
[1731723151298,4.05338,3102.0,3101.4,3.97814]
[1731723151627,0.06868862,3101.9,3101.4,3.97814]
[1731723151918,0.06868862,3101.9,3101.4,0.7538]
[1731723152119,3.29252862,3101.9,3101.4,0.7538]
[1731723152326,4.02711948,3101.9,3101.4,0.7538]
[1731723156211,0.80327948,3101.9,3101.5,3.22424]
[1731723156425,0.06868862,3101.9,3101.5,3.22424]
[1731723157132,0.06868862,3101.9,3101.4,0.7538]
[1731723157426,0.06868862,3101.9,3101.5,3.22421]
[1731723157606,0.06868862,3101.9,3101.6,3.22412]
[1731723157927,0.06868862,3101.9,3101.5,3.22421]
[1731723158134,0.06868862,3101.9,3101.5,3.22418]
[1731723158432,0.06868862,3101.9,3101.4,0.7538]
[1731723158594,0.06868862,3101.9,3101.4,3.97807]
[1731723158795,0.06868862,3101.9,3101.5,3.22421]
[1731723159600,0.06868862,3101.9,3101.6,3.22412]
[1731723160333,0.06868862,3101.9,3101.5,3.22421]
[1731723160993,0.06868862,3101.9,3101.6,3.2241]
[1731723161631,3.22357,3102.2,3101.6,3.2241]
[1731723161836,0.06880174,3102.1,3101.6,3.2241]
[1731723162295,3.22373,3102.0,3101.4,0.7538]
[1731723162492,3.22373,3102.0,3101.4,3.97813]
[1731723162718,0.06868385,3101.9,3101.4,3.97813]
[1731723163536,0.06868385,3101.9,3101.5,3.22423]
[1731723163829,0.7815,3102.0,3101.3,3.22441]
[1731723164054,0.06868012,3101.9,3101.3,3.22441]
[1731723164245,0.06868012,3101.9,3101.5,3.22414]
[1731723167349,0.06868012,3101.9,3101.4,3.22428]
[1731723167644,0.7729,3101.8,3101.3,3.22441]
[1731723167821,0.47510713,3101.7,3101.3,3.22441]
[1731723168551,0.47510713,3101.7,3101.4,0.24132416]
[1731723168914,0.47510713,3101.7,3101.3,3.22441]
[1731723169115,0.47510713,3101.7,3101.4,3.22433]
[1731723169323,0.06855812,3101.7,3101.4,3.22433]
[1731723169539,0.06855812,3101.7,3101.5,0.24126231]
[1731723169739,0.7729,3101.8,3101.4,3.22433]
[1731723169914,0.06847812,3101.6,3101.5,0.24126193]
[1731723170114,1.172564,3101.8,3101.5,0.24126193]
[1731723170318,0.06847812,3101.6,3101.4,3.22433]
[1731723170657,1.172564,3101.8,3101.5,0.24129662]
[1731723170860,1.172564,3101.8,3101.4,3.22433]
[1731723171068,1.172564,3101.8,3101.5,0.24129661]
[1731723171277,1.172564,3101.8,3101.4,3.22433]
[1731723174139,0.06854351,3101.7,3101.5,3.22414]
[1731723174532,0.7729,3101.8,3101.5,3.22414]
[1731723174740,0.06848455,3101.6,3101.5,3.22414]
[1731723175228,0.7729,3101.8,3101.5,3.22414]
[1731723175435,0.06854351,3101.7,3101.5,3.22414]
[1731723175772,0.06848455,3101.6,3101.5,3.22414]
[1731723175975,0.7729,3101.8,3101.4,3.22433]
[1731723176337,0.06854351,3101.7,3101.5,3.22416]
[1731723176536,0.7729,3101.8,3101.5,3.22416]
[1731723176872,0.06854351,3101.7,3101.5,3.22421]
[1731723177237,0.7729,3101.8,3101.5,3.22421]
[1731723177439,0.06854351,3101.7,3101.5,3.22421]
[1731723177747,0.06848455,3101.6,3101.5,3.22421]
[1731723177948,0.7729,3101.8,3101.5,3.22421]
[1731723178143,0.06854351,3101.7,3101.5,3.22421]
[1731723178356,0.06854351,3101.7,3101.6,3.22414]
[1731723178585,0.7729,3101.8,3101.6,3.22414]
[1731723178875,0.06854759,3101.7,3101.6,3.22414]
[1731723179230,0.8037,3102.1,3101.6,3.22414]
[1731723179431,0.06872614,3102.0,3101.6,3.22414]
[1731723180737,0.06872614,3102.0,3101.5,3.22424]
[1731723180937,3.29245614,3102.0,3101.5,3.22424]
[1731723181158,0.40961561,3101.9,3101.3,3.22444]
[1731723181438,0.06860858,3101.8,3101.2,4.01149]
[1731723181634,0.8037,3101.7,3101.1,3.22462]
[1731723181876,0.06849135,3101.6,3101.2,0.28]
[1731723182379,3.29272135,3101.6,3101.2,0.28]
[1731723182586,3.22441,3101.4,3101.2,0.28]
[1731723182871,0.06831174,3101.3,3101.0,0.28]
[1731723183578,0.06831174,3101.3,3100.9,0.63565711]
[1731723183579,0.06831174,3101.3,3100.9,3.86050711]
[1731723184071,3.22423,3101.6,3100.9,3.86050711]
[1731723184072,0.06823546,3101.2,3100.9,3.86050711]
[1731723184439,3.22425,3101.5,3100.9,3.86050711]
[1731723184776,0.06834793,3101.4,3100.7,4.01204]
[1731723185083,4.02824,3101.3,3100.6,3.22517]
[1731723185236,4.09652896,3101.3,3100.6,3.22517]
[1731723185458,4.09652896,3101.3,3100.7,3.22506]
[1731723185659,4.09652896,3101.3,3100.5,4.01224]
[1731723185660,3.22467,3101.1,3100.5,4.01224]
[1731723185890,0.06810525,3101.0,3100.5,4.01224]
[1731723186590,0.06810525,3101.0,3100.6,3.22517]
[1731723186780,0.4096529,3101.2,3100.6,3.22517]
[1731723186980,0.06816423,3101.1,3100.5,4.01224]
[1731723187200,0.06816423,3101.1,3100.7,3.22507]
[1731723187378,0.06816423,3101.1,3100.6,3.22515]
[1731723188972,0.06816423,3101.1,3100.5,4.66273034]
[1731723189204,4.02494,3101.0,3100.5,0.65049034]
[1731723189500,0.06803097,3100.9,3100.5,0.65049034]
[1731723190067,3.29300097,3100.9,3100.5,0.65049034]
[1731723191768,0.06803097,3100.9,3100.5,0.65049034]
[1731723192085,3.98047,3100.7,3100.5,0.65049034]
[1731723192469,3.98047,3100.7,3100.1,3.97656]
[1731723192470,0.06783122,3100.6,3100.1,3.97656]
[1731723192870,0.06783122,3100.6,3100.1,3.22566]
[1731723193109,0.06783122,3100.6,3100.1,3.87814848]
[1731723194305,0.06783122,3100.6,3099.9,4.03988]
[1731723194306,3.29301122,3100.6,3100.0,3.22574]
[1731723195881,3.29301122,3100.6,3099.9,0.814]
[1731723195882,3.69785234,3100.6,3099.9,0.814]
[1731723196082,3.69785234,3100.6,3099.9,4.0399]
[1731723196298,3.69785234,3100.6,3100.0,3.22577]
[1731723198187,3.2253,3100.5,3099.8,3.88226111]
[1731723198501,0.82310199,3100.4,3099.8,3.22594]
[1731723198689,4.04849199,3100.4,3099.8,3.22594]
[1731723199079,4.04849199,3100.4,3099.6,1.53805289]
[1731723199080,3.22549,3100.3,3099.7,3.2261]
[1731723199477,0.06758397,3100.2,3099.7,3.2261]
[1731723200207,3.29318397,3100.2,3099.6,3.95026289]
[1731723200808,0.7554,3100.1,3099.6,3.95026289]
[1731723201008,0.7554,3100.1,3099.7,3.22611]
[1731723201009,0.06745914,3100.0,3099.7,3.22611]
[1731723201209,0.06745914,3100.0,3099.7,3.85889896]
[1731723202447,0.06745914,3100.0,3099.8,3.22597]
[1731723202645,0.7554,3100.4,3099.8,3.22597]
[1731723202950,0.06763618,3100.3,3099.8,3.22597]
[1731723204351,3.29312618,3100.3,3099.8,3.22597]
[1731723204535,3.29312618,3100.3,3099.7,0.63278896]
[1731723204849,3.29312618,3100.3,3099.7,3.85889896]
[1731723206250,0.06763618,3100.3,3099.8,3.22598]
[1731723206411,0.06763618,3100.3,3099.8,4.03998]
[1731723208540,0.06763618,3100.3,3100.2,3.22559]
[1731723208744,0.06763618,3100.3,3100.2,3.99219]
[1731723208967,0.8236,3100.8,3100.3,3.22543]
[1731723211145,3.22476,3101.1,3100.4,3.2253]
[1731723211343,0.8236,3101.0,3100.4,3.2253]
[1731723212353,4.04838,3101.0,3100.4,3.2253]